bitfinex/quotes_BTCUSD_20260103
["timestamp","ask_amount","ask_price","bid_price","bid_amount"]
[1767400582963,0.01110654,90037.0,90030.0,0.4574666]
[1767400583169,0.01110642,90038.0,90032.0,0.01110716]
[1767400583457,0.01110642,90038.0,90033.0,0.01110703]
[1767400583633,0.01110654,90037.0,90032.0,0.01110716]
[1767400583937,0.01112,90036.0,90032.0,0.01110716]
[1767400584175,0.01112,90036.0,90031.0,0.01110728]
[1767400584367,0.01112,90036.0,90032.0,0.01110716]
[1767400584577,0.01112,90036.0,90033.0,0.01110703]
[1767400584729,0.01112,90036.0,90032.0,0.01110716]
[1767400585534,0.01112,90036.0,90033.0,0.01110703]
[1767400586320,0.01112,90036.0,90032.0,0.01110716]
[1767400586771,0.01112,90036.0,90033.0,0.01110703]
[1767400586972,0.01112,90036.0,90031.0,0.01110728]
[1767400587187,0.02222666,90036.0,90031.0,0.01110728]
[1767400587899,0.01112,90036.0,90031.0,0.01110728]
[1767400588253,0.000999,90031.0,90027.0,0.05806706]
[1767400588511,0.000999,90031.0,90028.0,0.04695929]
[1767400588708,0.01110679,90035.0,90028.0,0.05806694]
[1767400588911,0.01110703,90033.0,90028.0,0.04695929]
[1767400589216,0.01110691,90034.0,90029.0,0.01110753]
[1767400589333,0.01112,90036.0,90030.0,0.0111074]
[1767400589539,0.01112,90036.0,90031.0,0.01110728]
[1767400589751,0.01112,90036.0,90030.0,0.0111074]
[1767400590123,0.01112,90036.0,90033.0,0.01110703]
[1767400590700,0.01112,90036.0,90033.0,0.0666418]
[1767400591311,0.01112,90036.0,90034.0,0.05553398]
[1767400591897,0.01110555,90045.0,90039.0,0.01110629]
[1767400591996,0.02222568,90044.0,90038.0,0.01110642]
[1767400592422,0.01110592,90042.0,90037.0,0.01110654]
[1767400592619,0.01112,90044.0,90037.0,0.01110654]
[1767400592841,0.02222568,90044.0,90038.0,0.01110642]
[1767400593395,0.02222568,90044.0,90039.0,0.01110629]
[1767400593597,0.0111058,90043.0,90038.0,0.01110642]
[1767400593804,0.02222568,90044.0,90039.0,0.01110629]
[1767400594555,0.01112,90044.0,90041.0,0.01110605]
[1767400594996,0.01112,90044.0,90041.0,0.0666361]
[1767400595197,0.01110407,90057.0,90046.0,0.01110543]
[1767400595395,0.01112,90056.0,90051.0,0.06662868]
[1767400595543,0.01112,90056.0,90052.0,0.01110469]
[1767400595742,0.01112,90056.0,90051.0,0.01110481]
[1767400595947,0.01112,90056.0,90052.0,0.01110469]
[1767400596266,0.0001482,90059.0,90056.0,0.06662478]
[1767400596466,0.0001482,90059.0,90057.0,0.04917391]
[1767400596649,0.0112682,90059.0,90057.0,0.04917391]
[1767400597060,0.0112682,90059.0,90057.0,0.10469387]
[1767400598918,0.0112682,90059.0,90058.0,0.04917391]
[1767400599327,0.0112682,90059.0,90058.0,0.04817491]
[1767400599677,0.0102692,90059.0,90056.0,0.0111042]
[1767400601402,0.0102692,90059.0,90056.0,0.06662511]
[1767400601972,0.01032925,90059.0,90056.0,0.06662511]
[1767400604391,6.005e-05,90059.0,90056.0,0.06662511]
[1767400605700,6.005e-05,90059.0,90057.0,0.05551991]
[1767400612979,0.01110272,90068.0,90059.0,0.06652249]
[1767400613127,0.01112,90067.0,90063.0,0.01110333]
[1767400613325,0.01112,90067.0,90064.0,0.01010421]
[1767400613528,0.01112,90067.0,90063.0,0.01110333]
[1767400613946,0.05551176,90071.0,90063.0,0.01110333]
[1767400613947,0.01110185,90075.0,90066.0,0.05551445]
[1767400614174,0.01112,90074.0,90069.0,0.01110259]
[1767400614372,0.02222198,90074.0,90067.0,0.01110284]
[1767400614623,0.01110272,90068.0,90061.0,0.0444286]
[1767400614747,0.01112,90074.0,90061.0,0.0444286]
[1767400614748,0.01110309,90065.0,90061.0,0.03332502]
[1767400614954,0.01110321,90064.0,90061.0,0.03332502]
[1767400615682,0.06661756,90067.0,90061.0,0.03332502]
[1767400615877,0.01110309,90065.0,90061.0,0.03332502]
[1767400616280,0.01110321,90064.0,90061.0,0.03332502]
[1767400618113,0.01110309,90065.0,90061.0,0.03332502]
[1767400618320,0.01110296,90066.0,90061.0,0.03332502]
[1767400618518,0.01110321,90064.0,90061.0,0.03332502]
[1767400619113,0.01110309,90065.0,90061.0,0.03332502]
[1767400619537,0.01110296,90066.0,90061.0,0.03332502]
[1767400619827,0.01110272,90068.0,90065.0,0.000999]
[1767400620299,0.01110259,90069.0,90063.0,0.01110333]
[1767400620453,0.01110272,90068.0,90063.0,0.01110333]
[1767400620934,0.01110272,90068.0,90062.0,0.01110346]
[1767400621050,0.01110272,90068.0,90060.0,0.0111037]
[1767400621279,0.01110309,90065.0,90060.0,0.0111037]
[1767400621487,0.01110309,90065.0,90057.0,0.06662404]
[1767400621692,0.01110321,90064.0,90056.0,0.06027811]
[1767400621898,0.01110321,90064.0,90058.0,0.01110395]
[1767400622141,0.01110321,90064.0,90056.0,0.06027811]
[1767400622142,0.01110346,90062.0,90056.0,0.0111042]
[1767400622346,0.01110358,90061.0,90056.0,0.0111042]
[1767400622537,0.01110346,90062.0,90056.0,0.0111042]
[1767400622744,0.01110333,90063.0,90057.0,0.01110407]
[1767400623126,0.01110333,90063.0,90058.0,0.01110395]
[1767400624043,0.01110321,90064.0,90059.0,0.01110383]
[1767400624245,0.01112,90063.0,90059.0,0.01110383]
[1767400624800,0.01112,90063.0,90058.0,0.01110395]
[1767400624999,0.01112,90063.0,90059.0,0.01110383]
[1767400625214,0.01112,90063.0,90060.0,0.0111037]
[1767400625417,0.01112,90063.0,90056.0,0.0111042]
[1767400625764,0.01110358,90061.0,90056.0,0.0111042]
[1767400625980,0.0111037,90060.0,90054.0,0.01110444]
[1767400626126,0.0111037,90060.0,90053.0,0.40187094]
[1767400626497,0.01110346,90062.0,90053.0,0.40187094]
[1767400626498,0.01110346,90062.0,90056.0,0.0111042]
[1767400627620,0.01110346,90062.0,90054.0,0.06662668]
[1767400627621,0.01110358,90061.0,90054.0,0.06662668]
[1767400627825,0.01110346,90062.0,90055.0,0.01110432]
[1767400628102,0.01112,90063.0,90052.0,0.01110469]
[1767400628103,0.0111037,90060.0,90052.0,0.01110469]
[1767400628314,0.0111037,90060.0,90054.0,0.01110444]
[1767400628995,0.0111037,90060.0,90052.0,0.01110469]
[1767400628996,0.01110395,90058.0,90052.0,0.01110469]
[1767400629198,0.01110383,90059.0,90054.0,0.01110444]
[1767400629399,0.0111037,90060.0,90054.0,0.01110444]
[1767400629552,0.0111037,90060.0,90052.0,0.01658689]
[1767400629553,0.05817653,90059.0,90052.0,0.01658689]
[1767400629758,0.0470727,90059.0,90052.0,0.01118533]
[1767400630182,0.01110358,90061.0,90055.0,0.01110432]
[1767400630541,0.0111037,90060.0,90055.0,0.01110432]
[1767400630785,0.01110358,90061.0,90054.0,0.01110444]
[1767400630988,0.0111037,90060.0,90055.0,0.01110432]
[1767400631191,0.01110358,90061.0,90055.0,0.01110432]
[1767400631598,0.06662187,90061.0,90054.0,0.01110444]
[1767400631800,0.0111037,90060.0,90053.0,0.01110457]
[1767400631994,0.06662862,90052.0,90049.0,0.11960861]
[1767400632187,0.0555246,90051.0,90049.0,1e-08]
[1767400632511,0.01110469,90052.0,90049.0,1e-08]
[1767400632689,0.01110457,90053.0,90049.0,0.04574665]
[1767400633070,0.01110444,90054.0,90049.0,0.04570245]
[1767400633925,0.01110457,90053.0,90049.0,0.04570245]
[1767400634328,0.01110469,90052.0,90049.0,0.04570245]
[1767400634687,0.01110469,90052.0,90041.0,0.01110605]
[1767400634688,0.01110481,90051.0,90047.0,0.04574664]
[1767400634897,0.01110481,90051.0,90042.0,0.40187229]
[1767400634898,0.000999,90049.0,90045.0,0.04574664]
[1767400635079,0.000999,90049.0,90046.0,0.05685207]
[1767400635405,0.01110481,90051.0,90046.0,0.05685207]
[1767400635582,0.01110469,90052.0,90046.0,0.05685207]
[1767400635807,0.01110469,90052.0,90047.0,0.04574664]
[1767400635808,0.01110481,90051.0,90047.0,0.04574664]
[1767400636004,0.01110481,90051.0,90046.0,0.01110543]
[1767400636349,0.01110481,90051.0,90046.0,0.05685207]
[1767400638668,0.01110481,90051.0,90046.0,0.04574664]
[1767400638900,0.01110469,90052.0,90046.0,0.04574664]
[1767400639115,0.01110481,90051.0,90046.0,0.05685207]
[1767400640323,0.06662799,90053.0,90047.0,0.05685195]
[1767400640713,0.01110469,90052.0,90047.0,0.04574664]
[1767400640917,0.01110469,90052.0,90047.0,0.05685195]
[1767400641124,0.01110481,90051.0,90047.0,0.04574664]
[1767400642279,0.05552594,90048.0,90042.0,0.04574664]
[1767400642478,0.06763091,90047.0,90038.0,0.01110642]
[1767400642768,0.06763091,90047.0,90037.0,0.43700308]
[1767400642769,0.01110605,90041.0,90037.0,0.43700308]
[1767400643013,0.01110592,90042.0,90038.0,0.04574664]
[1767400643392,0.0111058,90043.0,90038.0,0.05685306]
[1767400643609,0.0111058,90043.0,90038.0,0.04574664]
[1767400643811,0.01110592,90042.0,90038.0,0.04574664]
[1767400644542,0.01110605,90041.0,90038.0,0.04574664]
[1767400644777,0.01110592,90042.0,90038.0,0.04574664]
[1767400645871,0.0111058,90043.0,90038.0,0.04574664]
[1767400646246,0.0111058,90043.0,90038.0,0.05685306]
[1767400646486,0.0111058,90043.0,90038.0,0.04574664]
[1767400646660,0.01110592,90042.0,90038.0,0.04574664]
[1767400647287,0.01110605,90041.0,90038.0,0.04574664]
[1767400647504,0.0111058,90043.0,90038.0,0.04574664]
[1767400647943,0.0111058,90043.0,90038.0,0.05685306]
[1767400648366,0.01110605,90041.0,90038.0,0.04574664]
[1767400648606,0.01110592,90042.0,90038.0,0.04574664]
[1767400648784,0.01110605,90041.0,90038.0,0.04574664]
[1767400649275,0.06663669,90041.0,90038.0,0.04574664]
[1767400649713,0.05553126,90040.0,90037.0,0.00049007]
[1767400649919,0.0565311,90038.0,90037.0,0.00049007]
[1767400650124,0.06663743,90040.0,90037.0,0.00049007]
[1767400650872,0.05553193,90039.0,90037.0,7e-08]
[1767400651057,0.01110666,90036.0,90031.0,0.01110728]
[1767400651208,0.01110666,90036.0,90029.0,0.06664515]
[1767400651209,0.01110666,90036.0,90029.0,0.01110753]
[1767400651411,0.01110691,90034.0,90030.0,0.04662337]
[1767400651638,0.01110679,90035.0,90030.0,0.04662337]
[1767400652241,0.01110691,90034.0,90030.0,0.04662337]
[1767400652971,0.01110703,90033.0,90030.0,0.04662337]
[1767400653288,0.01110691,90034.0,90030.0,0.04662337]
[1767400653442,0.01110666,90036.0,90031.0,0.05773065]
[1767400653780,0.01110666,90036.0,90031.0,0.04662337]
[1767400653986,0.01110654,90037.0,90031.0,0.05773065]
[1767400654568,0.01110679,90035.0,90031.0,0.04662337]
[1767400654915,0.01110666,90036.0,90031.0,0.05773065]
[1767400656890,0.01110666,90036.0,90031.0,0.04662337]
[1767400657119,0.01110654,90037.0,90032.0,0.01110716]
[1767400657297,0.01110654,90037.0,90032.0,0.05773053]
[1767400657522,0.01110642,90038.0,90032.0,0.05773053]
[1767400657729,0.01110654,90037.0,90032.0,0.05773053]
[1767400657971,0.01110642,90038.0,90032.0,0.05773053]
[1767400658493,0.01110666,90036.0,90032.0,0.04662337]
[1767400658653,0.01110642,90038.0,90033.0,0.04662337]
[1767400658957,0.01110654,90037.0,90033.0,0.04662337]
[1767400659908,0.01112,90041.0,90035.0,0.01110679]
[1767400660110,0.01112,90041.0,90039.0,0.04662337]
[1767400660328,0.01110543,90046.0,90041.0,0.04662337]
[1767400660550,0.01161005,90044.0,90041.0,0.05772942]
[1767400661711,0.01161005,90044.0,90041.0,0.01110605]
[1767400661945,0.01161005,90044.0,90041.0,0.05772942]
[1767400662981,0.01161005,90044.0,90041.0,0.04662337]
[1767400663688,0.01161005,90044.0,90041.0,0.04668342]
[1767400664947,0.01161005,90044.0,90041.0,0.05778947]
[1767400665126,0.01161005,90044.0,90041.0,0.04668342]
[1767400665880,0.01161005,90044.0,90041.0,6.005e-05]
[1767400666527,0.00049005,90044.0,90042.0,0.04647919]
[1767400667182,0.00049005,90044.0,90042.0,0.04548019]
[1767400668982,0.06663225,90047.0,90041.0,6.005e-05]
[1767400668983,0.01110531,90047.0,90044.0,0.04662337]
[1767400669322,0.02222531,90047.0,90044.0,0.04711337]
[1767400669457,0.02222531,90047.0,90044.0,0.04662337]
[1767400671015,0.01110543,90046.0,90042.0,0.04662337]
[1767400671985,0.01110506,90049.0,90046.0,0.000999]
[1767400672172,0.06663091,90049.0,90046.0,0.000999]
[1767400672381,0.01112,90048.0,90046.0,0.04762237]
[1767400672584,0.01112,90048.0,90046.0,0.04662337]
[1767400672787,0.05552515,90050.0,90046.0,0.04662337]
[1767400673019,0.01110506,90049.0,90046.0,0.04662337]
[1767400674446,0.01110494,90050.0,90046.0,0.04662337]
[1767400674647,0.01110506,90049.0,90046.0,0.04662337]
[1767400681145,0.06663077,90049.0,90046.0,0.04662337]
[1767400681746,0.01110506,90049.0,90046.0,0.04662337]
[1767400683262,0.06663072,90049.0,90046.0,0.04662337]
[1767400684165,0.07775072,90049.0,90046.0,0.04662337]
[1767400684298,0.01112,90051.0,90049.0,0.000999]
[1767400684515,0.01112,90051.0,90049.0,0.04827286]
[1767400684865,0.01112,90051.0,90047.0,0.05837917]
[1767400685205,0.01112,90051.0,90048.0,0.01110518]
[1767400685820,0.010121,90051.0,90047.0,0.05837917]
[1767400686451,0.010121,90051.0,90047.0,0.01110531]
[1767400686606,0.010121,90051.0,90046.0,0.04727386]
[1767400686809,0.000999,90047.0,90046.0,0.04727386]
[1767400687213,0.01110506,90049.0,90046.0,0.04727386]
[1767400689545,0.01110506,90049.0,90046.0,0.04129453]
[1767400690417,0.06663,90050.0,90046.0,0.04129453]
[1767400690418,0.01110494,90050.0,90046.0,0.04129453]
[1767400692566,0.01110506,90049.0,90046.0,0.04129453]
[1767400693449,0.01110568,90044.0,90037.0,0.00049007]
[1767400693619,0.01110617,90040.0,90037.0,0.00049007]
[1767400694383,0.01110605,90041.0,90037.0,0.00049007]
[1767400695354,0.01110592,90042.0,90037.0,0.00049007]
[1767400695490,0.01110592,90042.0,90037.0,0.01159661]
[1767400696335,0.0111058,90043.0,90037.0,0.01159661]
[1767400697398,0.01110568,90044.0,90038.0,0.01110642]
[1767400697686,0.01110555,90045.0,90044.0,0.000999]
[1767400697886,0.06663228,90047.0,90040.0,0.01110617]
[1767400698230,0.01110543,90046.0,90041.0,0.01110605]
[1767400698428,0.01110543,90046.0,90040.0,0.01110617]
[1767400698737,0.01110543,90046.0,90041.0,0.01110605]
[1767400699185,0.01110543,90046.0,90040.0,0.01110617]
[1767400699886,0.01110555,90045.0,90039.0,0.01110629]
[1767400700188,0.01110555,90045.0,90040.0,0.01110617]
[1767400700885,0.01110543,90046.0,90041.0,0.01110605]
[1767400701740,0.01110555,90045.0,90040.0,0.01110617]
[1767400701967,0.01110555,90045.0,90038.0,0.01110642]
[1767400702246,0.01110568,90044.0,90039.0,0.01110629]
[1767400702591,0.01110555,90045.0,90040.0,0.01110617]
[1767400703001,0.01110543,90046.0,90040.0,0.06663692]
[1767400703140,0.01110543,90046.0,90040.0,0.01110617]
[1767400703342,0.01110555,90045.0,90040.0,0.01110617]
[1767400703747,0.01110555,90045.0,90039.0,0.01110629]
[1767400703945,0.01110555,90045.0,90040.0,0.01110617]
[1767400705178,0.01110543,90046.0,90041.0,0.01110605]
[1767400707532,0.01110555,90045.0,90040.0,0.01110617]
[1767400707752,0.01110555,90045.0,90039.0,0.01110629]
[1767400707915,0.01110543,90046.0,90039.0,0.01110629]
[1767400708343,0.01110555,90045.0,90040.0,0.01110617]
[1767400708559,0.01110543,90046.0,90040.0,0.01110617]
[1767400708914,0.01110543,90046.0,90041.0,0.01110605]
[1767400709137,0.01110555,90045.0,90040.0,0.01110617]
[1767400710368,0.05552643,90048.0,90045.0,0.000999]
[1767400710572,0.01110531,90047.0,90045.0,0.000999]
[1767400710982,0.01110531,90047.0,90042.0,0.01110592]
[1767400711344,0.01110531,90047.0,90041.0,0.01110605]
[1767400711545,0.01110543,90046.0,90039.0,0.0666373]
[1767400712089,0.01110543,90046.0,90040.0,0.01110617]
[1767400712501,0.01110543,90046.0,90041.0,0.01110605]
[1767400712891,0.01110555,90045.0,90040.0,0.01110617]
[1767400713111,0.01110543,90046.0,90040.0,0.01110617]
[1767400713288,0.01110543,90046.0,90041.0,0.01110605]
[1767400713792,0.01110531,90047.0,90042.0,0.01110592]
[1767400716923,0.01110518,90048.0,90042.0,0.01110592]
[1767400717265,0.01112,90050.0,90048.0,0.000999]
[1767400717484,0.01112,90050.0,90048.0,0.05652467]
[1767400717686,0.01112,90050.0,90048.0,0.05552567]
[1767400717885,0.01107825,90050.0,90048.0,0.05552567]
[1767400718090,0.01112,90053.0,90049.0,0.06662987]
[1767400718292,0.010121,90053.0,90049.0,0.06662987]
[1767400718537,0.01110321,90064.0,90056.0,0.055521]
[1767400718739,0.01112,90059.0,90054.0,0.01110444]
[1767400718954,0.01112,90059.0,90055.0,0.01110432]
[1767400719437,0.01112,90059.0,90056.0,0.0111042]
[1767400719636,0.01112,90059.0,90055.0,0.01110432]
[1767400720254,0.01112,90059.0,90056.0,0.0111042]
[1767400723431,0.01110346,90062.0,90057.0,0.01110407]
[1767400723631,0.01112,90059.0,90056.0,0.0111042]
[1767400724675,0.01112,90059.0,90055.0,0.01110432]
[1767400724873,0.01112,90059.0,90054.0,0.01110444]
[1767400725318,0.01112,90059.0,90055.0,0.01110432]
[1767400725980,0.02222383,90059.0,90054.0,0.01110444]
[1767400726720,0.01112,90059.0,90054.0,0.01110444]
[1767400727507,0.01112,90059.0,90055.0,0.01110432]
[1767400727725,0.01112,90059.0,90054.0,0.01110444]
[1767400727929,0.01107644,90059.0,90054.0,0.01110444]
[1767400728916,0.02218027,90059.0,90053.0,0.01110457]
[1767400729979,0.01107644,90059.0,90055.0,0.01110432]
[1767400730183,0.01110395,90058.0,90053.0,0.01110457]
[1767400730365,0.02218027,90059.0,90054.0,0.01110444]
[1767400730688,0.01110395,90058.0,90053.0,0.01110457]
[1767400731032,0.01110395,90058.0,90052.0,0.01110469]
[1767400731235,0.01110395,90058.0,90053.0,0.01110457]
[1767400731851,0.02218027,90059.0,90053.0,0.01110457]
[1767400732285,0.01110395,90058.0,90053.0,0.01110457]
[1767400732635,0.01107644,90059.0,90055.0,0.01110432]
[1767400733776,0.01107644,90059.0,90054.0,0.01110444]
[1767400734609,0.01107644,90059.0,90055.0,0.01110432]
[1767400735258,0.01107644,90059.0,90054.0,0.01110444]
[1767400735567,0.01107644,90059.0,90055.0,0.01110432]
[1767400737146,0.01107644,90059.0,90054.0,0.01110444]
[1767400737356,0.02218027,90059.0,90054.0,0.01110444]
[1767400737902,0.01107644,90059.0,90054.0,0.01110444]
[1767400738148,0.01107644,90059.0,90056.0,0.0111042]
[1767400738424,0.01107644,90059.0,90055.0,0.05552162]
[1767400738585,0.01107644,90059.0,90056.0,0.0111042]
[1767400739014,0.01107644,90059.0,90055.0,0.01110432]
[1767400739171,0.01107644,90059.0,90054.0,0.01110444]
[1767400739888,0.01107644,90059.0,90055.0,0.01110432]
[1767400740143,0.02218027,90059.0,90054.0,0.01110444]
[1767400740422,0.01107644,90059.0,90055.0,0.01110432]
[1767400740780,0.01107644,90059.0,90056.0,0.0111042]
[1767400741790,0.01107644,90059.0,90056.0,0.06662472]
[1767400743109,0.01107644,90059.0,90055.0,0.06662556]
[1767400743308,0.01107644,90059.0,90056.0,0.0111042]
[1767400743744,0.01107644,90059.0,90055.0,0.06662556]
[1767400743942,0.01107644,90059.0,90055.0,0.01110432]
[1767400745062,0.01107644,90059.0,90056.0,0.0111042]
[1767400745931,0.01107644,90059.0,90055.0,0.01110432]
[1767400746584,0.01107644,90059.0,90056.0,0.0111042]
[1767400746931,0.01107644,90059.0,90055.0,0.01110432]
[1767400747334,0.01107644,90059.0,90056.0,0.0111042]
[1767400749511,0.01107644,90059.0,90056.0,0.0666247]
[1767400751055,0.01103455,90059.0,90056.0,0.0666247]
[1767400751868,0.01103455,90059.0,90055.0,0.06662544]
[1767400752065,0.01103455,90059.0,90055.0,0.01110432]
[1767400753099,0.01103455,90059.0,90054.0,0.01110444]
[1767400753324,0.01103455,90059.0,90055.0,0.01110432]
[1767400754944,0.02213838,90059.0,90054.0,0.01110444]
[1767400755058,0.01103455,90059.0,90055.0,0.01110432]
[1767400755260,0.02213838,90059.0,90054.0,0.01110444]
[1767400755468,0.02213838,90059.0,90053.0,0.01110457]
[1767400755669,0.02213838,90059.0,90054.0,0.01110444]
[1767400756016,0.02213838,90059.0,90052.0,0.06662766]
[1767400756249,0.02213838,90059.0,90051.0,0.01110481]
[1767400756250,0.01110395,90058.0,90051.0,0.01110481]
[1767400756425,0.01110407,90057.0,90051.0,0.01110481]
[1767400756653,0.01110407,90057.0,90052.0,0.01110469]
[1767400756829,0.01110407,90057.0,90051.0,0.01110481]
[1767400757155,0.0111042,90056.0,90051.0,0.01110481]
[1767400757557,0.01110432,90055.0,90049.0,0.10294553]
[1767400757731,0.01110432,90055.0,90050.0,0.01110494]
[1767400757919,0.01110432,90055.0,90049.0,0.11405059]
[1767400758127,0.0111042,90056.0,90049.0,0.11405059]
[1767400759604,0.01110407,90057.0,90051.0,0.01110481]
[1767400759883,0.02213838,90059.0,90053.0,0.01110457]
[1767400760237,0.02213838,90059.0,90054.0,0.01110444]
[1767400760429,0.02213838,90059.0,90053.0,0.01110457]
[1767400760652,0.01110395,90058.0,90053.0,0.01110457]
[1767400760849,0.01106025,90058.0,90053.0,0.01110457]
[1767400761173,0.02213838,90059.0,90053.0,0.01110457]
[1767400761575,0.02213838,90059.0,90054.0,0.01110444]
[1767400761772,0.02213838,90059.0,90053.0,0.01110457]
[1767400762153,0.01110407,90057.0,90052.0,0.01110469]
[1767400762352,0.01110395,90058.0,90052.0,0.01110469]
[1767400762698,0.01110395,90058.0,90053.0,0.01110457]
[1767400763001,0.01110395,90058.0,90052.0,0.01110469]
[1767400763199,0.01110407,90057.0,90052.0,0.01110469]
[1767400763910,0.01110395,90058.0,90052.0,0.01110469]
[1767400764473,0.01110395,90058.0,90051.0,0.06662846]
[1767400764658,0.01110407,90057.0,90052.0,0.01110469]
[1767400764863,0.01110395,90058.0,90052.0,0.01110469]
[1767400765069,0.01110395,90058.0,90053.0,0.01110457]
[1767400765827,0.02213838,90059.0,90054.0,0.01110444]
[1767400765976,0.02213838,90059.0,90053.0,0.01110457]
[1767400765977,0.01110395,90058.0,90053.0,0.01110457]
[1767400766176,0.02213838,90059.0,90054.0,0.01110444]
[1767400766377,0.01110395,90058.0,90052.0,0.01110469]
[1767400766924,0.01110395,90058.0,90053.0,0.01110457]
[1767400768224,0.01110395,90058.0,90052.0,0.01110469]
[1767400768422,0.01110407,90057.0,90051.0,0.01110481]
[1767400768922,0.01110407,90057.0,90052.0,0.01110469]
[1767400769154,0.01110395,90058.0,90053.0,0.01110457]
[1767400770157,0.01110407,90057.0,90051.0,0.01110481]
[1767400770352,0.01110407,90057.0,90052.0,0.01110469]
[1767400771378,0.01110395,90058.0,90053.0,0.01110457]
[1767400771631,0.01110407,90057.0,90052.0,0.01110469]
[1767400771778,0.01110395,90058.0,90052.0,0.01110469]
[1767400771981,0.01110407,90057.0,90051.0,0.01110481]
[1767400772605,0.0111042,90056.0,90051.0,0.01110481]
[1767400772810,0.0111042,90056.0,90050.0,0.01110494]
[1767400773064,0.0111042,90056.0,90051.0,0.01110481]
[1767400775371,0.01110407,90057.0,90051.0,0.01110481]
[1767400776301,0.01110407,90057.0,90052.0,0.01110469]
[1767400776988,0.01110407,90057.0,90051.0,0.01110481]
[1767400778331,0.0111042,90056.0,90051.0,0.01110481]
[1767400778536,0.01110407,90057.0,90051.0,0.01110481]
[1767400779337,0.01110407,90057.0,90052.0,0.01110469]
[1767400779542,0.0111042,90056.0,90051.0,0.01110481]
[1767400780280,0.01110432,90055.0,90049.0,0.11405071]
[1767400780476,0.01110432,90055.0,90050.0,0.01110494]
[1767400781124,0.0111042,90056.0,90051.0,0.01110481]
[1767400781325,0.0111042,90056.0,90050.0,0.01110494]
[1767400781671,0.0111042,90056.0,90051.0,0.01110481]
[1767400781927,0.01110432,90055.0,90049.0,0.11405071]
[1767400782228,0.01110444,90054.0,90049.0,0.01110506]
[1767400782384,0.01110457,90053.0,90048.0,0.01110518]
[1767400782586,0.01110444,90054.0,90049.0,0.01110506]
[1767400784413,0.01110457,90053.0,90048.0,0.01110518]
[1767400784950,0.01110444,90054.0,90049.0,0.01110506]
[1767400787491,0.01110432,90055.0,90050.0,0.01110494]
[1767400787681,0.05552021,90058.0,90050.0,0.01110494]
[1767400787887,0.01110432,90055.0,90049.0,0.01110506]
[1767400788398,0.01110432,90055.0,90050.0,0.01110494]
[1767400788585,0.05552021,90058.0,90050.0,0.01110494]
[1767400788789,0.0111042,90056.0,90050.0,0.01110494]
[1767400789569,0.01110432,90055.0,90048.0,0.06663074]
[1767400789775,0.01110444,90054.0,90049.0,0.01110506]
[1767400790295,0.01110457,90053.0,90048.0,0.01110518]
[1767400790925,0.01110444,90054.0,90049.0,0.01110506]
[1767400791107,0.01110457,90053.0,90048.0,0.01110518]
[1767400792669,0.01110444,90054.0,90049.0,0.01110506]
[1767400792909,0.01110457,90053.0,90048.0,0.01110518]
[1767400793084,0.01110469,90052.0,90047.0,0.02222531]
[1767400793685,0.01110457,90053.0,90048.0,0.01110518]
[1767400794089,0.01110444,90054.0,90049.0,0.01110506]
[1767400795355,0.01110444,90054.0,90048.0,0.01110518]
[1767400795792,0.01110444,90054.0,90049.0,0.01110506]
[1767400795993,0.01110432,90055.0,90049.0,0.01110506]
[1767400796530,0.01110444,90054.0,90049.0,0.01110506]
[1767400796683,0.01110432,90055.0,90050.0,0.01110494]
[1767400796887,0.01110432,90055.0,90049.0,0.01110506]
[1767400797183,0.01110432,90055.0,90050.0,0.01110494]
[1767400797507,0.01110444,90054.0,90048.0,0.01110518]
[1767400797697,0.01110444,90054.0,90049.0,0.01110506]
[1767400798103,0.01110444,90054.0,90048.0,0.01110518]
[1767400798284,0.01110444,90054.0,90049.0,0.01110506]
[1767400798481,0.01110432,90055.0,90050.0,0.01110494]
[1767400798836,0.01110444,90054.0,90049.0,0.01110506]
[1767400799200,0.01110432,90055.0,90050.0,0.01110494]
[1767400799364,0.01110432,90055.0,90049.0,0.01110506]
[1767400799569,0.01110432,90055.0,90050.0,0.01110494]
[1767400800186,0.01110444,90054.0,90049.0,0.01110506]
[1767400800473,0.01110432,90055.0,90049.0,0.0480268]
[1767400800673,0.01110432,90055.0,90039.0,0.22212533]
[1767400800674,0.01110555,90045.0,90041.0,0.0480268]
[1767400800906,0.01110568,90044.0,90041.0,0.01112]
[1767400801317,0.01110543,90046.0,90041.0,0.0591468]
[1767400801518,0.06663242,90047.0,90044.0,0.000999]
[1767400801892,0.01110543,90046.0,90041.0,0.01112]
[1767400802409,0.01110543,90046.0,90041.0,0.02222605]
[1767400803016,0.01110531,90047.0,90042.0,0.01110592]
[1767400803557,0.01110506,90049.0,90042.0,0.01110592]
[1767400803929,0.01110518,90048.0,90043.0,0.0111058]
[1767400804256,0.01110518,90048.0,90042.0,0.01110592]
[1767400804257,0.01110531,90047.0,90042.0,0.01110592]
[1767400804767,0.01110531,90047.0,90041.0,0.02222605]
[1767400805268,0.01110531,90047.0,90042.0,0.01110592]
[1767400805446,0.01110531,90047.0,90041.0,0.02222605]
[1767400805845,0.01110531,90047.0,90042.0,0.01110592]
[1767400806049,0.01110543,90046.0,90041.0,0.01118665]
[1767400806404,0.01110543,90046.0,90041.0,8.06e-05]
[1767400806576,0.01110568,90044.0,90041.0,8.06e-05]
[1767400806774,0.01110605,90041.0,90039.0,0.01112]
[1767400806979,0.01110617,90040.0,90037.0,0.01159575]
[1767400807340,0.01110617,90040.0,90037.0,0.00049007]
[1767400807538,0.06663836,90039.0,90036.0,0.0001508]
[1767400807740,0.05553272,90037.0,90036.0,1e-08]
[1767400808877,0.05553252,90038.0,90036.0,1e-08]
[1767400809115,0.05553252,90038.0,90037.0,0.000999]
[1767400809467,0.05553252,90038.0,90036.0,1e-08]
[1767400809666,0.06663836,90039.0,90036.0,1e-08]
[1767400809900,0.01110629,90039.0,90036.0,1e-08]
[1767400810319,0.01010729,90039.0,90036.0,1e-08]
[1767400811527,0.01110617,90040.0,90036.0,1e-08]
[1767400812526,0.01110629,90039.0,90036.0,1e-08]
[1767400815147,0.01106314,90039.0,90036.0,1e-08]
[1767400818067,0.01110629,90039.0,90036.0,1e-08]
[1767400818789,0.01110617,90040.0,90036.0,1e-08]
[1767400819021,0.01110629,90039.0,90036.0,1e-08]
[1767400820019,0.06663779,90039.0,90036.0,1e-08]
[1767400821926,0.05553269,90038.0,90036.0,1e-08]
[1767400825799,0.01110716,90032.0,90031.0,0.01112]
[1767400825986,0.01110691,90034.0,90031.0,0.01112]
[1767400827107,0.01110679,90035.0,90031.0,0.01112]
[1767400827287,0.01110691,90034.0,90031.0,0.01112]
[1767400827487,0.01110679,90035.0,90031.0,0.01112]
[1767400828258,0.01110666,90036.0,90031.0,0.02222728]
[1767400828393,0.01110666,90036.0,90031.0,0.01112]
[1767400829203,0.01110679,90035.0,90031.0,0.01112]
[1767400829857,0.01110691,90034.0,90031.0,0.01112]
[1767400830940,0.01110679,90035.0,90031.0,0.01112]
[1767400831394,0.01110666,90036.0,90031.0,0.02222728]
[1767400831798,0.01110654,90037.0,90032.0,0.01110716]
[1767400832040,0.01110666,90036.0,90031.0,0.02222728]
[1767400832244,0.01110654,90037.0,90031.0,0.02222728]